fUST/lending_fUST_20250929
["ID","MTS","AMOUNT","RATE_DAILY","PERIOD"]
[388312817,1759078248190,-550.91496746,0.00035616,9]
[388312818,1759078248203,-1004.71,0.00035616,9]
[388312819,1759078248216,-481.08275928,0.00035616,9]
[388312820,1759078248226,-480.0,0.00035616,9]
[388312821,1759078248235,-480.0,0.00035616,9]
[388312822,1759078248243,-480.0,0.00035616,9]
[388312823,1759078248252,-480.0,0.00035616,9]
[388312824,1759078248262,-481.60465909,0.00035616,9]
[388312825,1759078248274,-909.18,0.00035616,9]
[388312826,1759078248284,-480.0,0.00035616,9]
[388312827,1759078248294,-480.0,0.00035616,9]
[388312828,1759078248303,-666.41,0.00035616,9]
[388312829,1759078248314,-480.94846567,0.00035616,9]
[388312830,1759078248323,-480.0,0.00035616,9]
[388312831,1759078248334,-1182.78,0.00035616,9]
[388312832,1759078248345,-557.42,0.00035616,9]
[388312833,1759078248354,-480.0,0.00035616,9]
[388312834,1759078248363,-480.0,0.00035616,9]
[388312835,1759078248372,-572.46,0.00035616,9]
[388312836,1759078248381,-644.83,0.00035616,9]
[388312837,1759078248390,-480.0,0.00035616,9]
[388312838,1759078248399,-755.1,0.00035616,9]
[388312839,1759078248409,-641.51,0.00035616,9]
[388312840,1759078248418,-395.20251743,0.00035616,9]
[388312841,1759078248427,-480.0,0.00035616,9]
[388312842,1759078248436,-480.0,0.00035616,9]
[388312843,1759078248693,-1236.66,0.00035616,9]
[388312844,1759078248750,-920.91,0.00035616,9]
[388312845,1759078248773,-1005.89,0.00035616,9]
[388312846,1759078248782,-648.41,0.00035616,9]
[388312847,1759078248791,-480.0,0.00035616,9]
[388312848,1759078248800,-480.0,0.00035616,9]
[388312849,1759078248809,-488.76,0.00035616,9]
[388312850,1759078248817,-430.07499097,0.00035616,9]
[388312851,1759078248826,-665.05,0.00035616,9]
[388312852,1759078248836,-480.0,0.00035616,9]
[388312853,1759078248845,-480.0,0.00035616,9]
[388312854,1759078248854,-1241.38,0.00035616,9]
[388312855,1759078248863,-480.0,0.00035616,9]
[388312856,1759078248871,-732.29,0.00035616,9]
[388312857,1759078248880,-1103.08,0.00035616,9]
[388312858,1759078248889,-480.0,0.00035616,9]
[388312859,1759078248899,-480.0,0.00035616,9]
[388312860,1759078248907,-3083.2,0.00035616,9]
[388312861,1759078248916,-3211.64,0.00035616,9]
[388312862,1759078248924,-807.63,0.00035616,9]
[388312863,1759078248933,-480.0,0.00035616,9]
[388312864,1759078248941,-480.0,0.00035616,9]
[388312865,1759078248950,-480.0,0.00035616,9]
[388312866,1759078248958,-480.0,0.00035616,9]
[388312867,1759078248967,-2089.22,0.00035616,9]
[388312868,1759078248976,-480.0,0.00035616,9]
[388312869,1759078248984,-480.0,0.00035616,9]
[388312870,1759078248993,-500.0,0.00035616,9]
[388312871,1759078249002,-506.06750144,0.00035616,9]
[388312872,1759078249011,-682.23,0.00035616,9]
[388312873,1759078249021,-480.0,0.00035616,9]
[388312874,1759078249030,-618.74,0.00035616,9]
[388312875,1759078249038,-480.0,0.00035616,9]
[388312876,1759078249047,-480.0,0.00035616,9]
[388312877,1759078249056,-480.0,0.00035616,9]
[388312878,1759078249066,-600.0,0.00035616,9]
[388312879,1759078249075,-480.0,0.00035616,9]
[388312880,1759078249084,-430.97757584,0.00035616,9]
[388312881,1759078249093,-480.0,0.00035616,9]
[388312882,1759078249102,-929.27,0.00035616,9]
[388312883,1759078249111,-1015.55,0.00035616,9]
[388312884,1759078249120,-480.0,0.00035616,9]
[388312885,1759078249129,-480.0,0.00035616,9]
[388312886,1759078249138,-937.44,0.00035616,9]
[388312887,1759078249147,-1632.84,0.00035616,9]
[388312888,1759078249156,-480.0,0.00035616,9]
[388312889,1759078249165,-480.0,0.00035616,9]
[388312890,1759078249174,-1178.53,0.00035616,9]
[388312891,1759078249183,-480.0,0.00035616,9]
[388312892,1759078249192,-500.0,0.00035616,9]
[388312893,1759078249201,-975.02,0.00035616,9]
[388312894,1759078249211,-500.0,0.00035616,9]
[388312895,1759078249220,-500.0,0.00035616,9]
[388312896,1759078249229,-500.0,0.00035616,9]
[388312897,1759078249238,-500.0,0.00035616,9]
[388312898,1759078249246,-500.0,0.00035616,9]
[388312899,1759078249255,-500.0,0.00035616,9]
[388312900,1759078249264,-500.0,0.00035616,9]
[388312901,1759078249273,-336.04609607,0.00035616,9]
[388312902,1759078249282,-754.29,0.00035616,9]
[388312903,1759078249291,-480.0,0.00035616,9]
[388312904,1759078249300,-880.11,0.00035616,9]
[388312905,1759078249309,-480.0,0.00035616,9]
[388312906,1759078249318,-914.5,0.00035616,9]
[388312907,1759078249327,-500.0,0.00035616,9]
[388312908,1759078249336,-908.25,0.00035616,9]
[388312909,1759078249345,-1220.92,0.00035616,9]
[388312910,1759078249355,-1810.76,0.00035616,9]
[388312911,1759078249364,-1073.98,0.00035616,9]
[388312912,1759078249374,-480.0,0.00035616,9]
[388312913,1759078249383,-480.0,0.00035616,9]
[388312914,1759078249392,-480.0,0.00035616,9]
[388312915,1759078249401,-686.79,0.00035616,9]
[388312916,1759078249410,-480.0,0.00035616,9]
[388312917,1759078249419,-480.0,0.00035616,9]
[388312918,1759078249428,-480.0,0.00035616,9]
[388312919,1759078249437,-480.0,0.00035616,9]
[388312920,1759078249446,-482.4166824,0.00035616,9]
[388312921,1759078249455,-480.0,0.00035616,9]
[388312922,1759078249464,-908.6,0.00035616,9]
[388312923,1759078249474,-480.0,0.00035616,9]
[388312924,1759078249483,-785.61,0.00035616,9]
[388312925,1759078249492,-588.86,0.00035616,9]
[388312926,1759078249501,-480.0,0.00035616,9]
[388312927,1759078249511,-578.44,0.00035616,9]
[388312928,1759078249520,-480.0,0.00035616,9]
[388312929,1759078249531,-597.94,0.00035616,9]
[388312930,1759078249543,-1736.84,0.00035616,9]
[388312931,1759078249552,-827.3,0.00035616,9]
[388312932,1759078249561,-1605.71,0.00035616,9]
[388312933,1759078249570,-880.52,0.00035616,9]
[388312934,1759078249579,-900.91,0.00035616,9]
[388312935,1759078249589,-480.0,0.00035616,9]
[388312936,1759078249598,-564.29,0.00035616,9]
[388312937,1759078249609,-545.01,0.00035616,9]
[388312938,1759078249618,-480.0,0.00035616,9]
[388312939,1759078249627,-480.0,0.00035616,9]
[388312940,1759078249636,-480.0,0.00035616,9]
[388312941,1759078249645,-480.0,0.00035616,9]
[388312942,1759078249654,-3612.7,0.00035616,9]
[388312943,1759078249666,-480.0,0.00035616,9]
[388312944,1759078249674,-484.13438173,0.00035616,9]
[388312945,1759078249683,-955.26,0.00035616,9]
[388312946,1759078249692,-2525.32,0.00035616,9]
[388312947,1759078249701,-480.0,0.00035616,9]
[388312948,1759078249710,-1554.86,0.00035616,9]
[388312949,1759078249719,-1280.0,0.00035616,9]
[388312950,1759078249728,-480.0,0.00035616,9]
[388312951,1759078249737,-480.0,0.00035616,9]
[388312952,1759078249746,-4126.12,0.00035616,9]
[388312953,1759078249755,-919.77,0.00035616,9]
[388312954,1759078249765,-1795.28,0.00035616,9]
[388312955,1759078249774,-480.0,0.00035616,9]
[388312956,1759078249783,-480.0,0.00035616,9]
[388312957,1759078249792,-6145.05,0.00035616,9]
[388312958,1759078249800,-480.0,0.00035616,9]
[388312959,1759078249810,-480.0,0.00035616,9]
[388312960,1759078249818,-480.0,0.00035616,9]
[388312961,1759078249828,-480.0,0.00035616,9]
[388312962,1759078249837,-617.62,0.00035616,9]
[388312963,1759078249846,-836.17,0.00035616,9]
[388312964,1759078249855,-1094.45,0.00035616,9]
[388312965,1759078249864,-480.0,0.00035616,9]
[388312966,1759078249873,-480.0,0.00035616,9]
[388312967,1759078249882,-480.0,0.00035616,9]
[388312968,1759078249891,-853.18,0.00035616,9]
[388312969,1759078249900,-480.0,0.00035616,9]
[388312970,1759078249909,-480.0,0.00035616,7]
[388312971,1759078249918,-1149.59,0.00035616,9]
[388312972,1759078249928,-1685.26,0.00035616,9]
[388312973,1759078249937,-480.89892292,0.00035616,9]
[388312974,1759078249946,-480.0,0.00035616,9]
[388312975,1759078249955,-1569.15,0.00035616,9]
[388312976,1759078249964,-480.0,0.00035616,9]
[388312977,1759078249974,-480.0,0.00035616,9]
[388312978,1759078249983,-753.55,0.00035616,9]
[388312979,1759078249992,-698.73,0.00035616,9]
[388312980,1759078250001,-480.0,0.00035616,9]
[388312981,1759078250010,-781.78,0.00035616,9]
[388312982,1759078250020,-480.0,0.00035616,9]
[388312983,1759078250029,-824.88,0.00035616,9]
[388312984,1759078250038,-830.92,0.00035616,9]
[388312985,1759078250047,-480.0,0.00035616,9]
[388312986,1759078250057,-480.0,0.00035616,9]
[388312987,1759078250065,-480.0,0.00035616,9]
[388312988,1759078250074,-1000.0,0.00035616,9]
[388312989,1759078250083,-1085.95,0.00035616,9]
[388312990,1759078250093,-531.06060558,0.00035616,9]
[388312991,1759078250101,-480.0,0.00035616,9]
[388312992,1759078250110,-994.78,0.00035616,9]
[388312993,1759078250119,-480.0,0.00035616,9]
[388312994,1759078250128,-2698.32,0.00035616,9]
[388312995,1759078250137,-9171.74,0.00035616,9]
[388312996,1759078250146,-480.0,0.00035616,9]
[388312997,1759078250155,-480.0,0.00035616,7]
[388312998,1759078250164,-480.0,0.00035616,9]
[388312999,1759078250173,-765.23,0.00035616,9]
[388313000,1759078250182,-1064.57,0.00035616,9]
[388313001,1759078250191,-480.0,0.00035616,9]
[388313002,1759078250200,-3411.53,0.00035616,9]
[388313003,1759078250209,-3687.97,0.00035616,9]
[388313004,1759078250218,-3109.53,0.00035616,9]
[388313005,1759078250228,-480.0,0.00035616,9]
[388313006,1759078250237,-480.0,0.00035616,9]
[388313007,1759078250246,-480.29886621,0.00035616,9]
[388313008,1759078250255,-884.24,0.00035616,9]
[388313009,1759078250268,-714.51,0.00035616,9]
[388313010,1759078250276,-354.53685223,0.00035616,9]
[388313011,1759078250285,-480.0,0.00035616,9]
[388313012,1759078250294,-480.12678287,0.00035616,9]
[388313013,1759078250303,-4550.13,0.00035616,9]
[388313014,1759078250312,-502.93,0.00035616,9]
[388313015,1759078250321,-480.0,0.00035616,9]
[388313016,1759078250330,-480.0,0.00035616,9]
[388313017,1759078250339,-480.0,0.00035616,9]
[388313018,1759078250348,-480.0,0.00035616,9]
[388313019,1759078250357,-1257.3,0.00035616,9]
[388313020,1759078250366,-2813.86,0.00035616,9]
[388313021,1759078250376,-1237.34,0.00035616,9]
[388313022,1759078250385,-1355.51,0.00035616,9]
[388313023,1759078250395,-480.0,0.00035616,9]
[388313024,1759078250403,-480.48855432,0.00035616,9]
[388313025,1759078250412,-480.0,0.00035616,9]
[388313026,1759078250422,-498.27352331,0.00035616,9]
[388313027,1759078250431,-4382.02,0.00035616,9]
[388313028,1759078250440,-480.0,0.00035616,9]
[388313029,1759078250449,-2323.53,0.00035616,9]
[388313030,1759078250458,-480.0,0.00035616,9]
[388313031,1759078250467,-480.0,0.00035616,9]
[388313032,1759078250476,-721.24,0.00035616,9]
[388313033,1759078250485,-480.0,0.00035616,9]
[388313034,1759078250494,-480.0,0.00035616,9]
[388313035,1759078250503,-480.0,0.00035616,9]
[388313036,1759078250513,-480.0,0.00035616,9]
[388313037,1759078250523,-9868.19,0.00035616,9]
[388313038,1759078250532,-500.0,0.00035616,9]
[388313039,1759078250540,-500.0,0.00035616,9]
[388313040,1759078250549,-480.0,0.00035616,9]
[388313041,1759078250558,-500.0,0.00035616,9]
[388313042,1759078250567,-480.0,0.00035616,9]
[388313043,1759078250575,-500.0,0.00035616,9]
[388313044,1759078250584,-500.0,0.00035616,9]
[388313045,1759078250593,-500.0,0.00035616,9]
[388313046,1759078250602,-500.0,0.00035616,9]
[388313047,1759078250611,-500.0,0.00035616,9]
[388313048,1759078250620,-1490.11,0.00035616,9]
[388313049,1759078250630,-512.67554957,0.00035616,9]
[388313050,1759078250639,-1000.65,0.00035616,9]
[388313051,1759078250648,-480.0,0.00035616,9]
[388313052,1759078250657,-1118.16,0.00035616,9]
[388313053,1759078250666,-655.99,0.00035616,9]
[388313054,1759078250675,-480.0,0.00035616,9]
[388313055,1759078250683,-480.0,0.00035616,9]
[388313056,1759078250692,-1022.21,0.00035616,9]
[388313057,1759078250701,-691.58,0.00035616,9]
[388313058,1759078250711,-691.58,0.00035616,9]
[388313059,1759078250720,-691.58,0.00035616,9]
[388313060,1759078250728,-691.58,0.00035616,9]
[388313061,1759078250737,-691.58,0.00035616,9]
[388313062,1759078250746,-480.68254787,0.00035616,9]
[388313063,1759078250755,-691.58,0.00035616,9]
[388313064,1759078250764,-691.58,0.00035616,9]
[388313065,1759078250773,-691.58,0.00035616,9]
[388313066,1759078250782,-691.58,0.00035616,9]
[388313067,1759078250791,-691.58,0.00035616,9]
[388313068,1759078250800,-691.58,0.00035616,9]
[388313069,1759078250809,-843.73,0.00035616,9]
[388313070,1759078250818,-480.0,0.00035616,9]
[388313071,1759078250827,-691.58,0.00035616,9]
[388313072,1759078250836,-691.58,0.00035616,9]
[388313073,1759078250845,-480.0,0.00035616,9]
[388313074,1759078250854,-691.58,0.00035616,9]
[388313075,1759078250863,-480.0,0.00035616,9]
[388313076,1759078250871,-691.58,0.00035616,9]
[388313077,1759078250880,-480.0,0.00035616,9]
[388313078,1759078250890,-691.58,0.00035616,9]
[388313079,1759078250899,-691.58,0.00035616,9]
[388313080,1759078250907,-691.58,0.00035616,9]
[388313081,1759078250916,-691.58,0.00035616,9]
[388313082,1759078250925,-691.58,0.00035616,9]
[388313083,1759078250934,-691.58,0.00035616,9]
[388313084,1759078250943,-691.58,0.00035616,9]
[388313085,1759078250952,-691.58,0.00035616,9]
[388313086,1759078250962,-691.66332607,0.00035616,9]
[388313087,1759078250971,-1119.22,0.00035616,9]
[388313088,1759078250979,-2456.84,0.00035616,9]
[388313089,1759078250988,-480.0,0.00035616,9]
[388313090,1759078250997,-480.0,0.00035616,9]
[388313091,1759078251006,-480.0,0.00035616,9]
[388313092,1759078251016,-845.64,0.00035616,9]
[388313093,1759078251025,-902.59,0.00035616,9]
[388313094,1759078251034,-345.46271853,0.00035616,9]
[388313095,1759078251043,-480.0,0.00035616,9]
[388313096,1759078251051,-480.0,0.00035616,9]
[388313097,1759078251060,-480.0,0.00035616,9]
[388313098,1759078251069,-1149.04,0.00035616,9]
[388313099,1759078251078,-667.69,0.00035616,9]
[388313100,1759078251087,-480.0,0.00035616,9]
[388313101,1759078251096,-2299.66,0.00035616,9]
[388313102,1759078251105,-1106.37,0.00035616,9]
[388313103,1759078251115,-1194.41,0.00035616,9]
[388313104,1759078251124,-480.4549441,0.00035616,9]
[388313105,1759078251133,-868.96,0.00035616,9]
[388313106,1759078251142,-480.0,0.00035616,9]
[388313107,1759078251151,-480.57166384,0.00035616,9]
[388313108,1759078251161,-658.99,0.00035616,9]
[388313109,1759078251170,-480.0,0.00035616,9]
[388313110,1759078251180,-480.0,0.00035616,9]
[388313111,1759078251189,-492.57,0.00035616,9]
[388313112,1759078251198,-968.64,0.00035616,9]
[388313113,1759078251208,-1038.06,0.00035616,9]
[388313114,1759078251217,-524.34471382,0.00035616,9]
[388313115,1759078251227,-855.97,0.00035616,9]
[388313116,1759078251237,-356.69585157,0.00035616,9]
[388313117,1759078251246,-240.4,0.00035616,9]
[388313118,1759078251255,-539.38,0.00035616,9]
[388313119,1759078251267,-480.0,0.00035616,9]
[388313120,1759078251277,-480.0,0.00035616,9]
[388313121,1759078251289,-480.0,0.00035616,9]
[388313122,1759078251299,-1081.31,0.00035616,9]
[388313123,1759078251307,-480.0,0.00035616,9]
[388313124,1759078251317,-480.0,0.00035616,9]
[388313125,1759078251327,-480.0,0.00035616,9]
[388313126,1759078251335,-480.0,0.00035616,9]
[388313127,1759078251344,-1065.4,0.00035616,9]
[388313128,1759078251353,-480.0,0.00035616,9]
[388313129,1759078251362,-480.0,0.00035616,9]
[388313130,1759078251371,-741.69,0.00035616,9]
[388313131,1759078251380,-480.0,0.00035616,9]
[388313132,1759078251390,-881.9,0.00035616,9]
[388313133,1759078251398,-480.0,0.00035616,9]
[388313134,1759078251408,-480.0,0.00035616,9]
[388313135,1759078251417,-480.0,0.00035616,9]
[388313136,1759078251426,-925.44,0.00035616,9]
[388313137,1759078251435,-480.0,0.00035616,7]
[388313138,1759078251444,-266.12751506,0.00035616,9]
[388313139,1759078251453,-586.77022588,0.00035616,9]
[388313140,1759078251462,-480.0,0.00035616,9]
[388313141,1759078251471,-1094.08,0.00035616,9]
[388313142,1759078251480,-1159.23,0.00035616,9]
[388313143,1759078251490,-311.23673868,0.00035616,9]
[388313144,1759078251499,-2639.73,0.00035616,9]
[388313145,1759078251508,-480.0,0.00035616,9]
[388313146,1759078251517,-480.0,0.00035616,9]
[388313147,1759078251526,-596.33,0.00035616,9]
[388313148,1759078251536,-480.84263304,0.00035616,9]
[388313149,1759078251545,-652.1,0.00035616,9]
[388313150,1759078251554,-480.0,0.00035616,9]
[388313151,1759078251563,-480.0,0.00035616,9]
[388313152,1759078251572,-3526.89,0.00035616,9]
[388313153,1759078251582,-9648.91,0.00035616,9]
[388313154,1759078251591,-480.70139801,0.00035616,9]
[388313155,1759078251601,-480.0,0.00035616,9]
[388313156,1759078251610,-585.91,0.00035616,9]
[388313157,1759078251619,-960.54,0.00035616,9]
[388313158,1759078251628,-480.0,0.00035616,9]
[388313159,1759078251638,-1776.5,0.00035616,9]
[388313160,1759078251648,-913.52,0.00035616,9]
[388313161,1759078251657,-480.0,0.00035616,9]
[388313162,1759078251667,-480.0,0.00035616,9]
[388313163,1759078251676,-1050.37,0.00035616,9]
[388313164,1759078251685,-480.0,0.00035616,9]
[388313165,1759078251694,-480.0,0.00035616,9]
[388313166,1759078251840,-480.0,0.00035616,9]
[388313167,1759078251855,-1903.58,0.00035616,9]
[388313168,1759078251865,-1833.7,0.00035616,9]
[388313169,1759078251874,-480.39999638,0.00035616,9]
[388313170,1759078251884,-5131.17,0.00035616,9]
[388313171,1759078251893,-633.61,0.00035616,9]
[388313172,1759078251903,-480.0,0.00035616,9]
[388313173,1759078251912,-483.99190447,0.00035616,9]
[388313174,1759078251921,-480.0,0.00035616,9]
[388313175,1759078251935,-480.0,0.00035616,9]
[388313176,1759078251943,-1446.43,0.00035616,9]
[388313177,1759078251952,-480.0,0.00035616,9]
[388313178,1759078251962,-1315.62,0.00035616,9]
[388313179,1759078251971,-480.0,0.00035616,9]
[388313180,1759078251981,-524.55,0.00035616,9]
[388313181,1759078251990,-480.0,0.00035616,9]
[388313182,1759078251999,-480.0,0.00035616,9]
[388313183,1759078252008,-480.20249908,0.00035616,9]
[388313184,1759078252017,-2146.47,0.00035616,9]
[388313185,1759078252026,-922.3,0.00035616,9]
[388313186,1759078252034,-480.0,0.00035616,9]
[388313187,1759078252044,-535.63,0.00035616,9]
[388313188,1759078252053,-1858.19,0.00035616,9]
[388313189,1759078252063,-692.72,0.00035616,9]
[388313190,1759078252073,-5118.65,0.00035616,9]
[388313191,1759078252082,-4135.51,0.00035616,9]
[388313192,1759078252091,-480.3502122,0.00035616,9]
[388313193,1759078252100,-480.0,0.00035616,9]
[388313194,1759078252109,-1029.57,0.00035616,9]
[388313195,1759078252118,-480.0,0.00035616,9]
[388313196,1759078252128,-480.0,0.00035616,9]
[388313197,1759078252136,-480.0,0.00035616,9]
[388313198,1759078252146,-897.92,0.00035616,9]
[388313199,1759078252155,-704.68,0.00035616,9]
[388313200,1759078252164,-1174.96,0.00035616,9]
[388313201,1759078252173,-482.01234016,0.00035616,9]
[388313202,1759078252182,-480.0,0.00035616,9]
[388313203,1759078252191,-480.0,0.00035616,9]
[388313204,1759078252200,-480.0,0.00035616,9]
[388313205,1759078252210,-601.46284553,0.00035616,9]
[388313206,1759078252219,-480.0,0.00035616,9]
[388313207,1759078252227,-480.0,0.00035616,9]
[388313208,1759078252236,-451.15928512,0.00035616,9]
[388313209,1759078252245,-1101.93,0.00035616,9]
[388313210,1759078252254,-480.0,0.00035616,9]
[388313211,1759078252265,-838.96,0.00035616,9]
[388313212,1759078252276,-981.97,0.00035616,9]
[388313213,1759078252285,-480.0,0.00035616,9]
[388313214,1759078252294,-1707.57,0.00035616,9]
[388313215,1759078252302,-7714.25360184,0.00035616,9]
[388313216,1759078252352,-711.49473383,0.00035616,9]
[388313217,1759078252489,-326.75342642,0.00035616,9]
[388313218,1759078252500,-854.47620674,0.00035616,9]
[388313219,1759078252511,-1619.38572393,0.00035616,9]
[388313220,1759078252522,-409.0916923,0.00035616,9]
[388313221,1759078253714,-151.0,0.00032542,7]
[388313222,1759078253724,-151.0,0.00032542,7]
[388313223,1759078253734,-161.857826,0.00032542,7]
[388313224,1759078253743,-297.972362,0.00032542,7]
[388313225,1759078253753,-151.0,0.00032667,7]
[388313226,1759078253762,-151.0,0.00032667,7]
[388313227,1759078253773,-286.045134,0.00032772,7]
[388313228,1759078253782,-151.0,0.00032772,7]
[388313229,1759078253791,-151.0,0.00033327,7]
[388313230,1759078253800,-151.0,0.00033878,7]
[388313231,1759078253810,-151.0,0.00034699,7]
[388313232,1759078253820,-151.0,0.00034699,7]
[388313233,1759078253830,-151.0,0.00034699,7]
[388313234,1759078253839,-151.0,0.00034699,7]
[388313235,1759078253848,-151.0,0.00034699,7]
[388313236,1759078253858,-151.0,0.00034699,7]
[388313237,1759078253868,-151.0,0.00034699,7]
[388313238,1759078253878,-6740.82461494,0.00035616,9]
[388313239,1759078253888,-480.0,0.00035616,9]
[388313240,1759078253898,-1054.04,0.00035616,9]
[388313241,1759078253908,-480.0,0.00035616,9]
[388313242,1759078253917,-480.0,0.00035616,9]
[388313243,1759078253927,-3069.06,0.00035616,9]
[388313244,1759078253937,-1425.07,0.00035616,9]
[388313245,1759078253945,-480.0,0.00035616,9]
[388313246,1759078253955,-1026.17,0.00035616,9]
[388313247,1759078253964,-480.0,0.00035616,9]
[388313248,1759078253973,-480.0,0.00035616,9]
[388313249,1759078254024,-1872.77,0.00035616,9]
[388313250,1759078254034,-615.32,0.00035616,9]
[388313251,1759078254043,-480.0,0.00035616,9]
[388313252,1759078254052,-480.0,0.00035616,9]
[388313253,1759078254062,-480.0,0.00035616,9]
[388313254,1759078254071,-888.99,0.00035616,9]
[388313255,1759078254080,-480.0,0.00035616,9]
[388313256,1759078254089,-532.48,0.00035616,9]
[388313257,1759078254098,-447.95856811,0.00035616,9]
[388313258,1759078254107,-480.0,0.00035616,9]
[388313259,1759078254117,-3664.67,0.00035616,9]
[388313260,1759078254126,-1877.04,0.00035616,9]
[388313261,1759078254135,-1413.57,0.00035616,9]
[388313262,1759078254146,-1129.25,0.00035616,9]
[388313263,1759078254155,-2599.42,0.00035616,9]
[388313264,1759078254165,-480.0,0.00035616,9]
[388313265,1759078254175,-734.77,0.00035616,9]
[388313266,1759078254184,-480.0,0.00035616,9]
[388313267,1759078254194,-480.0,0.00035616,9]
[388313268,1759078254203,-4831.56,0.00035616,9]
[388313269,1759078254213,-972.07,0.00035616,9]
[388313270,1759078254222,-480.0,0.00035616,9]
[388313271,1759078254231,-2131.37,0.00035616,9]
[388313272,1759078254239,-480.0,0.00035616,9]
[388313273,1759078254249,-903.87,0.00035616,9]
[388313274,1759078254258,-480.0,0.00035616,9]
[388313275,1759078254271,-480.0,0.00035616,9]
[388313276,1759078254280,-2097.51,0.00035616,9]
[388313277,1759078254291,-480.0,0.00035616,9]
[388313278,1759078254301,-1149.21,0.00035616,9]
[388313279,1759078254311,-480.0,0.00035616,9]
[388313280,1759078254321,-895.65,0.00035616,9]
[388313281,1759078254329,-480.0,0.00035616,9]
[388313282,1759078254338,-2516.37,0.00035616,9]
[388313283,1759078254349,-480.0,0.00035616,9]
[388313284,1759078254359,-480.0,0.00035616,9]
[388313285,1759078254368,-5530.62,0.00035616,9]
[388313286,1759078254377,-689.22,0.00035616,9]
[388313287,1759078254386,-2221.01,0.00035616,9]
[388313288,1759078254395,-497.96,0.00035616,9]
[388313289,1759078254404,-1630.62,0.00035616,9]
[388313290,1759078254413,-480.0,0.00035616,9]
[388313291,1759078254422,-480.0,0.00035616,9]
[388313292,1759078254431,-480.0,0.00035616,9]
[388313293,1759078254441,-2058.37,0.00035616,9]
[388313294,1759078254450,-480.0,0.00035616,9]
[388313295,1759078254459,-308.49263053,0.00035616,9]
[388313296,1759078254468,-480.0,0.00035616,9]
[388313297,1759078254477,-1069.24,0.00035616,9]
[388313298,1759078254486,-480.0,0.00035616,9]
[388313299,1759078254495,-315.69409829,0.00035616,9]
[388313300,1759078254504,-480.0,0.00035616,9]
[388313301,1759078254512,-480.0,0.00035616,9]
[388313302,1759078254521,-480.0,0.00035616,9]
[388313303,1759078254530,-480.0,0.00035616,9]
[388313304,1759078254540,-2844.2,0.00035616,9]
[388313305,1759078254549,-480.77342575,0.00035616,9]
[388313306,1759078254558,-484.53927041,0.00035616,9]
[388313307,1759078254567,-480.0,0.00035616,9]
[388313308,1759078254576,-480.0,0.00035616,9]
[388313309,1759078254585,-950.0,0.00035616,9]
[388313310,1759078254594,-480.0,0.00035616,9]
[388313311,1759078254603,-480.0,0.00035616,9]
[388313312,1759078254612,-1019.58,0.00035616,9]
[388313313,1759078254622,-1070.2,0.00035616,9]
[388313314,1759078254630,-480.0,0.00035616,9]
[388313315,1759078254639,-480.0,0.00035616,9]
[388313316,1759078254648,-480.55339367,0.00035616,9]